bitfinex/quotes_SOLUSD_20250518
["timestamp","ask_amount","ask_price","bid_price","bid_amount"]
[1747598826169,69.38405536,166.27,166.19,6.01720921]
[1747598826473,43.38405536,166.29,166.2,1.20299281]
[1747598826642,18.64964886,166.3,166.2,1.20299281]
[1747598826643,43.38405536,166.3,166.2,1.20299281]
[1747598826960,69.38405536,166.26,166.19,6.01720921]
[1747598827359,43.38405536,166.25,166.19,6.01720921]
[1747598827665,26.0,166.26,166.19,6.01720921]
[1747598828276,43.38405536,166.24,166.18,6.0175713]
[1747598828442,43.38405536,166.21,166.16,6.01797706]
[1747598828771,26.0,166.23,166.16,6.01797706]
[1747598828772,18.64964886,166.22,166.16,6.01797706]
[1747598829142,43.38405536,166.21,166.16,6.01797706]
[1747598829337,26.0,166.24,166.16,6.01797706]
[1747598829771,43.38405536,166.22,166.16,6.01797706]
[1747598829954,43.38405536,166.21,166.16,6.01797706]
[1747598830261,43.38405536,166.21,166.14,6.0190201]
[1747598830563,18.64964886,166.23,166.14,6.0190201]
[1747598830773,43.38405536,166.22,166.14,6.0190201]
[1747598830941,69.38405536,166.21,166.14,6.0190201]
[1747598831141,69.38405536,166.21,166.08,6.0211946]
[1747598831142,43.38405536,166.15,166.08,6.0211946]
[1747598831347,43.38405536,166.14,166.08,6.0211946]
[1747598831560,43.38405536,166.12,166.08,6.0211946]
[1747598832067,1.20831544,166.13,166.04,21.079258]
[1747598832271,69.38405536,166.16,166.06,21.07671925]
[1747598832569,26.0,166.15,166.07,1.20387941]
[1747598832977,26.0,166.15,166.06,21.07671925]
[1747598833273,69.38405536,166.15,166.06,22.28066331]
[1747598833573,26.0,166.15,166.06,22.28066331]
[1747598833947,43.38405536,166.14,166.06,21.07671925]
[1747598834170,43.38405536,166.11,166.06,6.02191978]
[1747598834470,43.38405536,166.15,166.04,1.20424707]
[1747598834662,69.38405536,166.15,166.04,1.20424707]
[1747598834865,69.38405536,166.15,166.04,27.20424707]
[1747598834866,26.0,166.15,166.04,27.20424707]
[1747598835040,26.0,166.17,166.05,44.64964886]
[1747598835244,18.64964886,166.18,166.06,1.20377199]
[1747598835474,43.38405536,166.2,166.08,26.0]
[1747598835662,1.20831544,166.24,166.08,26.0]
[1747598835663,1.20831544,166.26,166.1,26.0]
[1747598835867,69.38405536,166.22,166.11,1.20342649]
[1747598836254,69.38405536,166.22,166.12,21.06910666]
[1747598836449,43.38405536,166.18,166.12,6.01974476]
[1747598836650,43.38405536,166.15,166.07,6.02155717]
[1747598836959,43.38405536,166.13,166.07,6.02155717]
[1747598837949,43.38405536,166.11,166.04,6.02264514]
[1747598838151,1.20831544,166.12,166.06,18.64964886]
[1747598838362,18.64964886,166.2,166.1,6.02046959]
[1747598838564,18.64964886,166.22,166.11,1.20359662]
[1747598838768,43.38405536,166.21,166.11,1.20359662]
[1747598839278,62.03370422,166.21,166.11,1.20359662]
[1747598839576,43.38405536,166.2,166.11,1.20359662]
[1747598839877,88.03370422,166.21,166.11,1.20359662]
[1747598840090,7.22299124,166.26,166.11,1.20359662]
[1747598840372,18.64964886,166.25,166.12,47.06910666]
[1747598840545,62.03370422,166.25,166.13,1.20334321]
[1747598840749,26.0,166.24,166.13,1.20334321]
[1747598840949,4.00294148,166.27,166.17,26.0]
[1747598841177,43.38405536,166.29,166.18,1.20302254]
[1747598841351,69.38405536,166.28,166.18,1.20302254]
[1747598841547,43.38405536,166.28,166.18,1.20302254]
[1747598841860,43.38405536,166.3,166.18,1.20302254]
[1747598842061,18.64964886,166.32,166.18,1.20302254]
[1747598842266,43.38405536,166.3,166.18,1.20302254]
[1747598842478,18.64964886,166.3,166.19,21.06023225]
[1747598842652,1.20831544,166.33,166.22,26.0]
[1747598842849,4.00294148,166.37,166.23,19.85247085]
[1747598843079,26.0,166.34,166.23,19.85247085]
[1747598843453,4.27893072,166.36,166.26,26.0]
[1747598843663,4.27893072,166.36,166.27,1.20236762]
[1747598843862,47.66298608,166.36,166.27,1.20236762]
[1747598844064,4.27893072,166.36,166.27,1.20236762]
[1747598844256,47.38699684,166.37,166.27,1.20236762]
[1747598844455,73.38699684,166.37,166.28,6.01395236]
[1747598844754,43.38405536,166.33,166.27,6.01430578]
[1747598845084,43.38405536,166.32,166.24,6.01539942]
[1747598845250,18.64964886,166.33,166.24,6.01539942]
[1747598845446,26.0,166.34,166.25,1.20265493]
[1747598846365,69.38405536,166.34,166.26,6.0146758]
[1747598846765,26.0,166.34,166.27,1.20260307]
[1747598847168,62.03370422,166.33,166.26,6.0146758]
[1747598847356,69.38405536,166.34,166.26,6.0146758]
[1747598848081,26.0,166.34,166.27,1.20255125]
[1747598848465,26.0,166.34,166.28,6.01395236]
[1747598848670,69.38405536,166.34,166.28,6.01395236]
[1747598848969,18.64964886,166.33,166.24,6.01539942]
[1747598849276,43.38405536,166.31,166.24,6.01539942]
[1747598849660,44.5923708,166.32,166.24,6.01539942]
[1747598850163,62.03370422,166.31,166.24,6.01539942]
[1747598850381,43.38405536,166.3,166.21,6.01648516]
[1747598850784,43.38405536,166.3,166.21,21.05769808]
[1747598851091,63.24201966,166.31,166.21,21.05769808]
[1747598851555,62.03370422,166.31,166.21,21.05769808]
[1747598851956,26.0,166.31,166.22,1.20283485]
[1747598852189,26.0,166.33,166.22,27.20283485]
[1747598852702,26.0,166.33,166.23,21.05516452]
[1747598852876,26.0,166.33,166.24,1.20257958]
[1747598853487,69.38405536,166.33,166.24,1.20257958]
[1747598853668,69.38405536,166.33,166.23,21.05516452]
[1747598853669,43.38405536,166.31,166.23,21.05516452]
[1747598854164,69.38405536,166.33,166.23,22.25787406]
[1747598854577,43.38405536,166.32,166.23,22.25787406]
[1747598854777,26.0,166.33,166.23,22.25787406]
[1747598855091,69.38405536,166.33,166.23,22.25787406]
[1747598855399,43.38405536,166.36,166.26,26.0]
[1747598855604,4.00294148,166.37,166.26,27.202492]
[1747598855776,4.00294148,166.37,166.27,26.0]
[1747598855963,4.00294148,166.37,166.28,1.20217972]
[1747598856469,47.38699684,166.37,166.28,1.20217972]
[1747598856667,47.38699684,166.37,166.29,21.04756749]
[1747598856862,4.00294148,166.37,166.29,21.04756749]
[1747598857086,47.38699684,166.37,166.29,21.04756749]
[1747598857277,43.38405536,166.36,166.29,21.04756749]
[1747598857890,43.38405536,166.35,166.29,6.01359071]
[1747598858784,18.64964886,166.34,166.26,21.05127308]
[1747598859107,43.38405536,166.32,166.26,6.0146758]
[1747598859871,43.38405536,166.28,166.21,6.01648516]
[1747598860103,43.38405536,166.27,166.21,6.01648516]
[1747598860297,1.20831544,166.26,166.21,6.01648516]
[1747598860499,43.38405536,166.26,166.21,6.01648516]
[1747598860675,19.8579643,166.28,166.21,6.01648516]
[1747598860882,43.38405536,166.27,166.19,15.04243846]
[1747598861692,26.0,166.29,166.2,1.20307262]
[1747598862003,43.38405536,166.29,166.2,1.20307262]
[1747598862204,43.38405536,166.28,166.19,15.04243846]
[1747598862407,43.38405536,166.27,166.19,15.04243846]
[1747598862575,43.38405536,166.25,166.19,15.04243846]
[1747598862780,43.38405536,166.25,166.18,6.0175713]
[1747598862995,43.38405536,166.25,166.16,21.063857]
[1747598863689,1.20831544,166.26,166.16,21.063857]
[1747598863890,43.38405536,166.26,166.16,21.063857]
[1747598864095,26.0,166.27,166.16,22.26701158]
[1747598864297,43.38405536,166.26,166.16,22.26701158]
[1747598864690,43.38405536,166.25,166.16,21.063857]
[1747598864890,43.38405536,166.25,166.16,22.2671047]
[1747598865089,44.5923708,166.26,166.16,22.2671047]
[1747598865300,69.38405536,166.27,166.16,22.2671047]
[1747598865500,26.0,166.27,166.16,22.2671047]
[1747598865699,43.38405536,166.26,166.16,22.2671047]
[1747598866036,43.38405536,166.25,166.16,22.2671047]
[1747598866223,26.0,166.25,166.16,22.2671047]
[1747598866398,69.38405536,166.25,166.16,22.2671047]
[1747598866602,43.38405536,166.24,166.16,21.063857]
[1747598866797,42.88405536,166.24,166.16,21.063857]
[1747598867005,43.38405536,166.25,166.16,21.063857]
[1747598867804,18.64964886,166.26,166.16,21.063857]
[1747598868020,43.38405536,166.24,166.16,21.063857]
[1747598868202,18.64964886,166.24,166.16,21.063857]
[1747598868398,43.38405536,166.23,166.16,21.063857]
[1747598868625,18.64964886,166.24,166.16,21.063857]
[1747598868626,44.64964886,166.24,166.16,21.063857]
[1747598868933,43.38405536,166.23,166.16,21.063857]
[1747598869230,43.38405536,166.23,166.16,15.04556139]
[1747598869429,43.38405536,166.22,166.16,15.04556139]
[1747598869600,28.42846453,166.22,166.14,6.0190201]
[1747598869796,28.42846453,166.23,166.14,6.0190201]
[1747598870013,28.42846453,166.21,166.14,21.06657035]
[1747598870325,28.42846453,166.18,166.14,6.0190201]
[1747598870505,54.42846453,166.19,166.14,6.0190201]
[1747598870715,54.42846453,166.22,166.14,6.0190201]
[1747598871058,1.20831544,166.23,166.12,18.64964886]
[1747598871330,28.42846453,166.25,166.15,1.20351608]
[1747598871628,54.42846453,166.25,166.15,1.20351608]
[1747598872304,47.07811339,166.29,166.15,1.20351608]
[1747598872622,44.64964886,166.29,166.15,1.20351608]
[1747598872793,28.42846453,166.23,166.14,26.0]
[1747598872995,26.0,166.23,166.13,21.06783843]
[1747598873218,26.0,166.23,166.13,51.16475048]
[1747598873405,54.42846453,166.23,166.13,51.16475048]
[1747598873608,28.42846453,166.25,166.14,1.20337581]
[1747598873830,28.42846453,166.24,166.14,1.20337581]
[1747598874002,28.42846453,166.25,166.14,1.20337581]
[1747598874328,45.8579643,166.26,166.14,1.20337581]
[1747598874622,26.0,166.26,166.14,1.20337581]
[1747598875133,26.0,166.28,166.17,51.15243424]
[1747598875337,26.0,166.28,166.18,1.20303956]
[1747598875513,54.42846453,166.28,166.18,1.20303956]
[1747598875710,28.42846453,166.26,166.18,1.20303956]
[1747598876008,28.42846453,166.25,166.17,21.06276704]
[1747598876212,28.42846453,166.23,166.17,21.06276704]
[1747598876408,28.42846453,166.23,166.17,6.01793344]
[1747598876720,36.42847453,166.22,166.17,6.01793344]
[1747598876930,28.42846453,166.21,166.17,6.01793344]
[1747598877221,28.42846453,166.19,166.13,6.01938241]
[1747598877623,28.42846453,166.2,166.13,6.01938241]
[1747598878011,28.42846453,166.2,166.13,21.06783843]
[1747598879100,28.42846453,166.2,166.13,15.04845602]
[1747598879439,1.20831544,166.21,166.11,6.02010715]
[1747598879440,28.42846453,166.15,166.11,6.02010715]
[1747598879724,28.42846453,166.16,166.11,6.02010715]
[1747598880620,28.42846453,166.13,166.07,21.0754501]
[1747598880924,28.42846453,166.11,166.04,6.02264514]
[1747598881235,29.63677997,166.12,166.04,21.079258]
[1747598881413,73.07811339,166.13,166.04,21.079258]
[1747598881609,28.42846453,166.14,166.04,21.079258]
[1747598882000,18.64964886,166.1,166.04,6.02264514]
[1747598882306,29.63677997,166.14,165.98,45.9281635]
[1747598882307,28.42846453,166.05,166.01,6.02373351]
[1747598882508,29.63677997,166.04,166.0,15.05937637]
[1747598882733,1.20831544,166.04,166.0,15.05937637]
[1747598882905,1.20831544,166.04,165.99,6.0244593]
[1747598883110,28.42846453,166.03,165.99,6.0244593]
[1747598883420,1.20831544,166.04,165.99,21.08560756]
[1747598883650,61.84418976,166.07,165.99,21.08560756]
[1747598883805,19.8579643,166.07,165.99,21.08560756]
[1747598883999,26.0,166.08,165.99,21.08560756]
[1747598884208,18.64964886,166.06,165.99,21.08560756]
[1747598884622,1.20831544,166.05,165.99,21.08560756]
[1747598885128,61.84418976,166.06,165.99,21.08560756]
[1747598885302,87.84418976,166.0,165.87,25.14401927]
[1747598885500,1.20831544,165.99,165.88,21.09959006]
[1747598885701,18.64964886,166.01,165.91,26.0]
[1747598885909,18.64964886,166.04,165.92,1.20502237]
[1747598886109,61.84418976,166.04,165.92,1.20502237]
[1747598886302,18.64964886,166.02,165.93,26.0]
[1747598886502,18.64964886,166.02,165.94,21.09196094]
[1747598886909,19.8579643,166.06,165.97,26.0]
[1747598887118,18.64964886,166.1,165.98,1.20468607]
[1747598887424,61.84418976,166.11,165.98,27.20468607]
[1747598887996,18.64964886,166.09,165.98,27.20468607]
[1747598888416,18.64964886,166.09,165.99,21.08560756]
[1747598888736,61.84418976,166.07,165.99,21.08560756]
[1747598888938,44.40285634,166.06,165.99,21.08560756]
[1747598889111,1.20831544,166.06,165.99,21.08560756]
[1747598889311,61.84418976,166.05,165.99,6.0244593]
[1747598889931,18.64964886,166.05,165.99,6.0244593]
[1747598890249,61.84418976,166.05,165.99,6.0244593]
[1747598890535,61.84418976,166.03,165.96,15.06380974]
[1747598890709,199.2208129,166.03,165.96,15.06380974]
[1747598890907,43.1945409,166.01,165.96,15.06380974]
[1747598891508,43.1945409,166.0,165.95,6.02591141]
[1747598891906,43.1945409,166.0,165.95,21.09068995]
[1747598892137,163.37662314,166.03,165.95,21.09068995]
[1747598892339,18.64964886,166.02,165.95,21.09068995]
[1747598892506,163.37662314,166.03,165.95,15.06477854]
[1747598892708,18.64964886,166.02,165.95,15.06477854]
[1747598893246,43.1945409,166.01,165.94,6.02627455]
[1747598893455,19.8579643,166.02,165.94,21.09196094]
[1747598893755,63.0525052,166.02,165.94,21.09196094]
[1747598894061,61.84418976,165.97,165.94,6.02627455]
[1747598894218,43.1945409,165.96,165.92,6.02700096]
[1747598894539,43.1945409,165.94,165.88,21.09920309]
[1747598894842,43.1945409,165.93,165.88,21.09920309]
[1747598895033,1.20831544,165.95,165.88,21.09920309]
[1747598895341,43.1945409,165.93,165.88,21.09920309]
[1747598895520,43.1945409,165.94,165.88,21.09920309]
[1747598895832,1.20831544,165.95,165.88,21.09920309]
[1747598896055,63.0525052,165.97,165.88,21.09920309]
[1747598896338,43.1945409,165.97,165.88,78.44680349]
[1747598896547,18.64964886,165.99,165.88,78.44680349]
[1747598896548,69.1945409,165.93,165.88,6.0284543]
[1747598896835,43.1945409,165.91,165.88,6.0284543]
[1747598897019,43.1945409,165.92,165.88,6.0284543]
[1747598897435,27.20831544,165.93,165.88,6.0284543]
[1747598897633,43.1945409,165.94,165.88,6.0284543]
[1747598897846,18.64964886,165.94,165.88,21.09959006]
[1747598898041,61.84418976,165.94,165.88,21.09959006]
[1747598898240,87.84418976,165.89,165.78,6.03209072]
[1747598898444,43.1945409,165.86,165.78,6.03209072]
[1747598898645,43.1945409,165.84,165.78,15.0802268]
[1747598899262,43.1945409,165.83,165.78,15.0802268]
[1747598899448,43.1945409,165.84,165.78,15.0802268]
[1747598900360,19.8579643,165.86,165.76,6.03281853]
[1747598900361,43.1945409,165.81,165.76,6.03281853]
[1747598900563,1.20831544,165.83,165.76,21.11486486]
[1747598900756,26.0,165.86,165.76,21.11486486]
[1747598900957,43.1945409,165.84,165.76,21.11486486]
[1747598901143,43.1945409,165.85,165.76,21.11486486]
[1747598901664,43.1945409,165.85,165.76,51.27895752]
[1747598902039,43.1945409,165.84,165.76,51.27895752]
[1747598902233,1.20831544,165.86,165.77,26.0]
[1747598902441,44.40285634,165.86,165.77,26.0]
[1747598902634,61.84418976,165.87,165.78,21.11231752]
[1747598902866,18.64964886,165.87,165.78,51.27277113]
[1747598903041,61.84418976,165.87,165.78,51.27277113]
[1747598903532,18.64964886,165.87,165.78,51.27277113]
[1747598903735,61.84418976,165.87,165.78,51.27277113]
[1747598904054,69.1945409,165.89,165.79,1.20606141]
[1747598904637,43.1945409,165.86,165.8,21.1097708]
[1747598904834,27.20831544,165.89,165.8,21.1097708]
[1747598905242,43.1945409,165.87,165.8,21.1097708]
[1747598905464,43.1945409,165.88,165.8,21.1097708]
[1747598905671,28.54324899,165.86,165.8,21.1097708]
[1747598905969,28.54324899,165.81,165.78,6.03209072]
[1747598906678,28.54324899,165.84,165.76,15.08149235]
[1747598906850,12.05223609,165.91,165.79,26.0]
[1747598907165,28.54324899,165.88,165.79,26.0]
[1747598907363,28.54324899,165.87,165.79,26.0]
[1747598907675,28.54324899,165.86,165.79,26.0]
[1747598908061,28.54324899,165.86,165.77,26.0]
[1747598908442,28.54324899,165.86,165.78,21.11231752]
[1747598908956,28.54324899,165.85,165.78,21.11231752]
[1747598909278,28.54324899,165.84,165.78,21.11231752]
[1747598909449,1.20831544,165.86,165.78,21.11231752]
[1747598909655,29.75156443,165.86,165.78,21.11231752]
[1747598910068,28.54324899,165.85,165.78,21.11231752]
[1747598910245,29.75156443,165.84,165.78,21.11231752]
[1747598910443,28.54324899,165.85,165.78,15.0802268]
[1747598910748,1.20831544,165.86,165.78,15.0802268]
[1747598910951,29.75156443,165.86,165.78,15.0802268]
[1747598911153,1.20831544,165.86,165.78,15.0802268]
[1747598911351,73.19289785,165.87,165.78,15.0802268]
[1747598911547,163.37662314,165.89,165.78,15.0802268]
[1747598911768,137.37662314,165.89,165.81,26.0]
[1747598911965,28.54324899,165.93,165.81,26.0]
[1747598912164,18.64964886,165.92,165.81,27.20578528]
[1747598912338,18.64964886,165.92,165.81,1.20578528]
[1747598912541,47.19289785,165.92,165.82,21.10722469]
[1747598912745,28.54324899,165.9,165.82,21.10722469]
[1747598913375,18.64964886,165.9,165.82,21.10722469]
[1747598913876,47.19289785,165.9,165.82,21.10722469]
[1747598914358,28.54324899,165.91,165.82,21.10722469]
[1747598914560,54.54324899,165.92,165.82,15.07658907]
[1747598914870,6.02510525,165.98,165.83,1.20570225]
[1747598915060,18.64964886,165.96,165.85,26.0]
[1747598915276,28.54324899,165.99,165.87,26.0]
[1747598915586,6.02327851,166.03,165.88,1.2052093]
[1747598915784,18.64964886,165.99,165.88,1.2052093]
[1747598916130,34.56234899,166.05,165.88,1.2052093]
[1747598916131,28.54324899,166.01,165.89,26.0]
[1747598916297,28.54324899,166.03,165.9,1.20498618]
[1747598916446,6.0191,166.1,165.98,26.0]
[1747598916741,1.20831544,166.11,166.0,21.08433734]
[1747598916946,5.21125692,166.15,166.03,26.0]
[1747598917186,54.54324899,166.14,166.04,1.20410707]
[1747598917377,28.54324899,166.12,166.04,1.20410707]
[1747598917678,28.54324899,166.1,166.01,27.20414165]
[1747598918082,28.54324899,166.08,166.0,21.08433734]
[1747598918252,45.8579643,166.11,166.0,21.08433734]
[1747598918455,28.54324899,166.08,166.0,21.08433734]
[1747598918653,19.8579643,166.07,166.0,6.02409638]
[1747598918960,28.54324899,166.07,166.0,6.02409638]
[1747598919367,27.20831544,166.08,166.0,6.02409638]
[1747598919569,28.54324899,166.09,166.0,22.28890549]
[1747598919799,8.00001,166.22,166.05,26.0]
[1747598920007,1.20831544,166.21,166.09,26.0]
[1747598920164,28.54324899,166.18,166.1,1.20371596]
[1747598920369,28.54324899,166.16,166.1,1.20371596]
[1747598920566,28.54324899,166.15,166.05,6.02228244]
[1747598920771,28.54324899,166.13,166.05,6.02228244]
[1747598920966,28.54324899,166.11,166.05,6.02228244]
[1747598921416,1.20831544,166.12,166.05,6.02228244]
[1747598921775,29.75156443,166.12,166.05,6.02228244]
[1747598922778,29.75156443,166.12,166.04,15.05648117]
[1747598922971,28.54324899,166.11,166.04,15.05648117]
[1747598923173,28.54324899,166.1,166.03,32.02300789]
[1747598923568,28.54324899,166.11,166.03,32.02300789]
[1747598923905,28.54324899,166.09,166.03,6.02300789]
[1747598924068,1.20831544,166.1,166.03,6.02300789]
[1747598924374,28.54324899,166.09,166.03,6.02300789]
[1747598924566,1.20831544,166.1,166.03,6.02300789]
[1747598924769,28.54324899,166.07,166.0,15.05948206]
[1747598925107,28.54324899,166.06,165.99,6.0244593]
[1747598925286,28.54324899,166.04,165.99,6.0244593]
[1747598925681,28.54324899,166.03,165.99,6.0244593]
[1747598925873,28.54324899,166.04,165.99,6.0244593]
[1747598926072,18.64964886,166.05,165.99,6.0244593]
[1747598926285,28.54324899,166.04,165.99,6.0244593]
[1747598927196,28.54324899,166.03,165.98,6.02482226]
[1747598927373,29.75156443,166.02,165.97,18.77399775]
[1747598927575,28.54324899,166.03,165.97,18.77399775]
[1747598928292,18.64964886,166.07,165.97,33.83696093]
[1747598928473,28.54324899,166.06,165.97,33.83696093]
[1747598929288,19.8579643,166.07,165.97,33.83696093]
[1747598929478,54.54324899,166.06,165.97,33.83696093]
[1747598929677,28.54324899,166.04,165.97,33.83696093]
[1747598929881,54.54324899,166.06,165.97,33.83696093]
[1747598930088,54.04324899,166.06,165.97,33.83696093]
[1747598930286,25.5,166.06,165.97,33.83696093]
[1747598930494,28.54324899,166.05,165.97,33.83696093]
[1747598931181,25.5,166.06,165.97,33.83696093]
[1747598931384,28.54324899,166.05,165.97,33.83696093]
[1747598931769,28.54324899,166.04,165.97,33.83696093]
[1747598931968,28.54324899,166.05,165.97,33.83696093]
[1747598932372,26.0,166.07,165.97,35.04159068]
[1747598932599,54.54324899,166.06,165.97,35.04159068]
[1747598933177,28.54324899,166.07,165.97,35.04159068]
[1747598933596,28.54324899,166.06,165.97,35.04159068]
[1747598933794,28.54324899,166.05,165.97,35.04159068]
[1747598934095,28.54324899,166.04,165.97,33.83696093]
[1747598934284,28.54324899,166.01,165.97,18.77399775]
[1747598935678,28.54324899,166.0,165.97,12.74894435]
[1747598935878,1.20831544,166.02,165.97,12.74894435]
[1747598936118,28.54324899,166.0,165.97,12.74894435]
[1747598936494,1.20831544,166.02,165.97,18.7740567]
[1747598936690,28.54324899,166.0,165.97,12.74894435]
[1747598937088,28.54324899,166.0,165.97,18.77412939]
[1747598937707,156.026272,166.03,165.97,18.77412939]
[1747598937907,28.54324899,166.01,165.97,18.77412939]
[1747598939383,28.54324899,166.0,165.97,18.77412939]
[1747598939722,28.54324899,165.99,165.97,12.74894435]
[1747598940008,28.54324899,165.98,165.94,6.02608777]
[1747598940188,28.54324899,165.96,165.91,6.02736423]
[1747598940391,28.54324899,165.95,165.91,6.02736423]
[1747598940781,6.1969,166.11,165.92,27.20533183]
[1747598941007,28.54324899,166.08,165.96,27.5357]
[1747598941188,28.54324899,166.11,165.99,26.0]
[1747598941398,28.54324899,166.11,166.01,21.08306728]
[1747598941584,54.54324899,166.11,166.01,21.08306728]
[1747598942092,28.54324899,166.11,166.01,21.08306728]
[1747598942494,28.54324899,166.13,166.02,1.20432608]
[1747598942708,1.20831544,166.2,166.04,26.0]
[1747598942911,28.54324899,166.15,166.05,1.2039779]
[1747598943114,29.75156443,166.14,166.05,1.2039779]
[1747598943286,28.54324899,166.14,166.05,1.2039779]
[1747598943595,28.54324899,166.15,166.06,21.07671925]
[1747598944000,28.54324899,166.12,166.06,6.02191978]
[1747598944598,27.20831544,166.14,166.06,6.02191978]
[1747598944599,28.54324899,166.11,166.06,6.02191978]
[1747598945019,28.54324899,166.12,166.06,6.02191978]
[1747598945389,28.54324899,166.13,166.06,6.02191978]
[1747598945587,28.54324899,166.14,166.06,15.05479947]
[1747598945792,54.54324899,166.15,166.06,16.25883469]
[1747598946016,26.0,166.15,166.06,16.25883469]
[1747598946208,28.54324899,166.17,166.06,16.25883469]
[1747598946387,28.54324899,166.19,166.06,16.25883469]
[1747598946584,28.54324899,166.19,166.08,26.0]
[1747598946799,29.75156443,166.19,166.09,1.20378197]
[1747598947018,28.54324899,166.18,166.09,1.20378197]
[1747598947216,28.54324899,166.14,166.07,27.5297]
[1747598947427,28.54324899,166.16,166.07,27.5297]
[1747598947590,28.54324899,166.16,166.08,22.27809408]
[1747598947790,28.54324899,166.17,166.08,22.27809408]
[1747598948212,33.2256376,166.19,166.08,22.27809408]
[1747598948413,28.54324899,166.18,166.08,48.27809408]
[1747598948901,26.0,166.18,166.08,48.27809408]
[1747598949103,26.0,166.18,166.08,78.3840671]
[1747598949415,28.54324899,166.21,166.11,26.0]
[1747598949728,28.54324899,166.21,166.13,21.06783843]
[1747598949921,34.00001,166.22,166.13,21.06783843]
[1747598950119,28.54324899,166.21,166.13,21.06783843]
[1747598950816,28.54324899,166.2,166.13,21.06783843]
[1747598951124,28.54324899,166.18,166.13,6.01938241]
[1747598951326,1.20831544,166.19,166.13,6.01938241]
[1747598951826,29.75156443,166.21,166.13,6.01938241]
[1747598952003,26.0,166.21,166.13,6.01938241]
[1747598952208,26.0,166.21,166.13,21.06783843]
[1747598952432,8.00001,166.22,166.14,1.20352047]
[1747598952605,8.00001,166.22,166.15,21.06530242]
[1747598952801,8.00001,166.22,166.18,26.0]
[1747598953014,8.00001,166.22,166.19,1.20310336]
[1747598953212,8.00001,166.22,166.2,26.0]
[1747598954821,8.00001,166.22,166.18,41.04357574]
[1747598955128,8.00001,166.22,166.19,6.01720921]
[1747598956639,8.00001,166.22,166.15,15.04646113]
[1747598957324,8.00001,166.22,166.15,21.06511896]
[1747598958318,36.54325899,166.22,166.15,21.06511896]
[1747598958516,28.54324899,166.21,166.15,6.01865783]
[1747598958816,28.54324899,166.2,166.13,6.01938241]
[1747598959017,9.20832544,166.22,166.13,21.06783843]
[1747598959215,8.00001,166.22,166.16,26.0]
[1747598959439,8.00001,166.22,166.17,1.20330033]
[1747598960843,8.00001,166.22,166.18,21.06149957]
[1747598961820,8.00001,166.22,166.18,6.0175713]
[1747598962918,8.00001,166.22,166.18,15.04392827]
[1747598963444,8.00001,166.22,166.1,18.64964886]
[1747598963445,28.54324899,166.19,166.1,18.64964886]
[1747598963632,28.54324899,166.17,166.1,32.02046959]
[1747598964023,28.54324899,166.17,166.1,47.07164358]
[1747598964238,137.37662314,166.2,166.1,21.07164358]
[1747598964519,28.54324899,166.17,166.1,21.07164358]
[1747598964718,28.54324899,166.16,166.1,6.02046959]
[1747598964911,28.54324899,166.13,166.07,15.05347105]
[1747598965122,28.54324899,166.11,166.05,6.02228244]
[1747598965521,28.54324899,166.09,166.05,6.02228244]
[1747598965738,28.54324899,166.07,166.05,6.02228244]
[1747598966248,28.54324899,166.08,166.05,6.02228244]
[1747598966628,28.54324899,166.07,166.05,6.02228244]
[1747598966824,28.54324899,166.07,166.0,6.02409638]
[1747598967140,28.54324899,166.07,166.01,15.05933377]
[1747598967846,1.20831544,166.11,166.01,15.05933377]
[1747598967847,28.54324899,166.08,166.01,15.05933377]
[1747598968241,28.54324899,166.09,166.01,15.05933377]
[1747598968547,1.20831544,166.11,166.01,15.05933377]
[1747598968746,19.8579643,166.19,166.01,42.26370532]
[1747598968939,28.54324899,166.12,166.01,48.28743883]
[1747598969140,28.54324899,166.15,166.05,26.0]
[1747598969454,28.54324899,166.17,166.06,1.20395999]
[1747598969666,8.00001,166.22,166.07,18.64964886]
[1747598969860,26.0,166.19,166.08,1.20377211]
[1747598970028,28.54324899,166.19,166.08,27.20377211]
[1747598970543,28.54324899,166.17,166.03,1.20374262]
[1747598970765,28.54324899,166.17,166.05,18.64964886]
[1747598971064,28.54324899,166.16,166.06,21.07671925]
[1747598971222,28.54324899,166.16,166.07,1.2039028]
[1747598971648,28.54324899,166.17,166.07,1.2039028]
[1747598971847,28.54324899,166.16,166.07,1.2039028]
[1747598972046,137.37662314,166.18,166.07,1.2039028]
[1747598972551,28.54324899,166.16,166.07,1.2039028]
[1747598972740,28.54324899,166.15,166.07,1.2039028]
[1747598972945,28.54324899,166.14,166.06,21.07671925]
[1747598973336,1.20831544,166.17,166.07,27.2040737]
[1747598973639,1.20831544,166.17,166.06,21.07671925]
[1747598973837,28.54324899,166.17,166.06,22.28065617]
[1747598974340,28.54324899,166.17,166.06,52.39025511]
[1747598974541,28.54324899,166.16,166.06,52.39025511]
[1747598976440,137.37662314,166.18,166.06,52.39025511]
[1747598976642,28.54324899,166.17,166.06,52.39025511]
[1747598976843,137.37662314,166.18,166.06,52.39025511]
[1747598976844,28.54324899,166.16,166.06,52.39025511]